bitfinex-derivatives/quotes_SOLF0:USTF0_20260108
["timestamp","ask_amount","ask_price","bid_price","bid_amount"]
[1767898212642,6.5053,138.48,138.41,8.10400221]
[1767898212842,91.9243,138.5,138.42,1.59600221]
[1767898213539,6.5045,138.49,138.42,1.59600221]
[1767898214838,6.505,138.48,138.42,1.59600221]
[1767898215044,85.42,138.5,138.4,1.59600221]
[1767898216539,6.5055,138.47,138.41,1.59600221]
[1767898218646,2.79151537,138.47,138.38,1.59600221]
[1767898219153,88.21151537,138.47,138.38,1.59600221]
[1767898219744,2.79151537,138.45,138.38,1.59600221]
[1767898220144,6.5059,138.46,138.39,1.59600221]
[1767898222243,6.5059,138.46,138.39,8.10510221]
[1767898222842,2.79151537,138.52,138.41,1.59600221]
[1767898223056,88.21151537,138.52,138.42,1.59600221]
[1767898224651,6.5045,138.49,138.43,1.59600221]
[1767898224853,2.79151537,138.52,138.43,1.59600221]
[1767898225041,85.42,138.51,138.43,1.59600221]
[1767898225355,91.924,138.51,138.43,8.10330221]
[1767898226053,89.924,138.51,138.43,8.10330221]
[1767898227454,6.504,138.5,138.43,8.10330221]
[1767898228254,6.504,138.5,138.43,1.59600221]
[1767898230056,2.79151537,138.5,138.41,8.33165225]
[1767898230257,2.79151537,138.5,138.42,6.5077]
[1767898230460,6.5045,138.49,138.42,8.33165225]
[1767898230660,88.19151537,138.5,138.42,1.59600221]
[1767898230860,88.19151537,138.5,138.41,6.73565004]
[1767898231654,6.505,138.48,138.41,13.24385004]
[1767898232162,6.5054,138.47,138.41,6.73565004]
[1767898232362,6.5054,138.47,138.4,8.33165225]
[1767898232959,6.5054,138.47,138.4,14.84035225]
[1767898233360,6.5048,138.49,138.41,8.10188823]
[1767898233560,88.19151537,138.5,138.42,1.59368823]
[1767898233756,2.79151537,138.48,138.4,6.73565004]
[1767898233956,2.79151537,138.46,138.38,6.73565004]
[1767898234558,8.29152496,138.44,138.38,6.73565004]
[1767898234756,8.29152496,138.44,138.37,14.83903827]
[1767898235360,1.78452496,138.42,138.37,8.32933827]
[1767898236159,1.78452496,138.42,138.38,6.73565004]
[1767898240362,91.9064,138.45,138.38,14.83893827]
[1767898240563,1.78452496,138.46,138.39,8.32933827]
[1767898241059,1.78452496,138.46,138.4,6.73565004]
[1767898241366,1.78452496,138.46,138.39,8.32933827]
[1767898241567,8.29042496,138.46,138.39,14.83843827]
[1767898242765,1.78452496,138.44,138.39,6.73565004]
[1767898243071,1.78452496,138.44,138.38,6.73565004]
[1767898243762,1.78452496,138.44,138.37,14.83893827]
[1767898243963,1.78452496,138.42,138.37,8.32933827]
[1767898246062,1.78452496,138.43,138.38,1.59368823]
[1767898246270,1.78452496,138.43,138.38,8.32933827]
[1767898246775,186.5916,138.48,138.38,8.32933827]
[1767898246965,1.78452496,138.43,138.38,8.32933827]
[1767898247269,1.78452496,138.43,138.38,1.59368823]
[1767898247667,1.78452496,138.43,138.38,8.32933827]
[1767898247869,1.78452496,138.43,138.38,1.59368823]
[1767898250678,1.78452496,138.43,138.38,8.32933827]
[1767898250880,1.78452496,138.43,138.38,1.59368823]
[1767898251080,1.78452496,138.43,138.38,8.32933827]
[1767898256384,8.29132496,138.44,138.38,8.32933827]
[1767898257783,6.5064,138.45,138.39,1.59368823]
[1767898257983,8.29092496,138.45,138.4,1.59368823]
[1767898258471,101.1744,138.5,138.41,1.59368823]
[1767898258672,1.78452496,138.46,138.41,8.32933827]
[1767898258877,1.78452496,138.44,138.39,8.32933827]
[1767898259178,8.29132496,138.44,138.38,6.73565004]
[1767898259585,8.29132496,138.44,138.37,8.32933827]
[1767898259882,1.78452496,138.44,138.38,8.32933827]
[1767898261085,1.78452496,138.44,138.39,8.32933827]
[1767898262580,1.78452496,138.44,138.4,6.73565004]
[1767898262781,6.506,138.46,138.4,6.73565004]
[1767898262983,1.78452496,138.45,138.4,6.73565004]
[1767898263784,1.78452496,138.45,138.39,8.32933827]
[1767898265082,8.29092496,138.45,138.39,8.32933827]
[1767898265988,1.78452496,138.45,138.39,8.32933827]
[1767898266194,1.78452496,138.43,138.37,8.39895877]
[1767898266790,8.29192496,138.43,138.37,8.39895877]
[1767898267585,1.78452496,138.43,138.37,14.90905877]
[1767898267877,1.78452496,138.43,138.37,8.39895877]
[1767898270596,8.29182496,138.43,138.37,8.39895877]
[1767898271285,1.78452496,138.43,138.37,14.90905877]
[1767898272591,6.5068,138.44,138.39,1.67795331]
[1767898272791,85.42,138.45,138.4,1.67795331]
[1767898273498,85.42,138.45,138.35,1.78452496]
[1767898273700,85.47276095,138.45,138.35,1.78452496]
[1767898273902,1.83728591,138.44,138.33,188.49962496]
[1767898274698,8.34418591,138.44,138.37,6.5097]
[1767898275697,8.34418591,138.44,138.37,8.18765331]
[1767898276698,8.34418591,138.44,138.38,1.67795331]
[1767898278996,0.05276095,138.44,138.38,1.67795331]
[1767898279698,1.85541003,138.42,138.36,1.67795331]
[1767898280401,0.07437548,138.41,138.34,1.67795331]
[1767898280704,0.07437548,138.39,138.34,1.67795331]
[1767898283000,6.58357548,138.39,138.34,1.67795331]
[1767898283311,0.07437548,138.39,138.34,1.67795331]
[1767898285706,0.09454399,138.37,138.3,1.67795331]
[1767898287607,0.09454399,138.37,138.29,1.78452496]
[1767898287608,8.29412496,138.38,138.31,6.5129]
[1767898287809,8.29412496,138.38,138.32,1.67795331]
[1767898291619,1.89489733,138.38,138.32,1.67795331]
[1767898291914,1.89489733,138.38,138.34,0.04947656]
[1767898292212,8.40459733,138.38,138.34,0.04947656]
[1767898294618,6.62007237,138.38,138.34,0.04947656]
[1767898297711,0.11037237,138.38,138.34,0.04947656]
[1767898302317,85.46,138.39,138.34,0.04947656]
[1767898303319,92.11715322,138.39,138.34,0.04947656]
[1767898304616,0.15056714,138.38,138.34,0.04947656]
[1767898308025,91.9692,138.39,138.34,1.64157907]
[1767898308521,92.12992963,138.39,138.34,1.64157907]
[1767898308918,85.46,138.39,138.34,1.64157907]
[1767898309223,85.62319868,138.39,138.34,0.04947656]
[1767898310526,6.5096,138.38,138.34,0.04947656]
[1767898311316,0.16806459,138.37,138.34,0.04947656]
[1767898311522,0.16806459,138.36,138.28,1.59210251]
[1767898311731,0.16806459,138.34,138.28,1.59210251]
[1767898312319,0.16806459,138.34,138.29,6.5138]
[1767898312520,0.16806459,138.34,138.28,1.59210251]
[1767898312828,0.05477809,138.33,138.28,1.59210251]
[1767898313535,0.05477809,138.33,138.28,8.10640251]
[1767898313827,0.05477809,138.33,138.29,1.59210251]
[1767898314634,0.05477809,138.33,138.29,8.10590251]
[1767898314925,0.05477809,138.33,138.3,1.59210251]
[1767898315331,0.1728289,138.36,138.3,1.59210251]
[1767898315525,0.1728289,138.36,138.3,1.64647269]
[1767898315725,6.6834289,138.36,138.3,1.64647269]
[1767898315926,6.5106,138.36,138.3,1.64647269]
[1767898316625,94.99542984,138.38,138.31,1.59210251]
[1767898316824,88.48542984,138.38,138.31,1.59210251]
[1767898317332,85.69467671,138.38,138.31,1.59210251]
[1767898317529,85.69467671,138.38,138.33,0.05049075]
[1767898318235,6.5101,138.37,138.33,0.05049075]
[1767898319830,6.75416115,138.37,138.33,0.05049075]
[1767898321530,0.24636961,138.35,138.29,10.57910337]
[1767898321730,0.24636961,138.35,138.29,1.59210251]
[1767898322233,6.75756961,138.35,138.29,1.59210251]
[1767898322433,0.25193276,138.34,138.27,10.77385266]
[1767898322737,0.25193276,138.34,138.28,1.7868518]
[1767898323125,0.25193276,138.34,138.28,8.3010518]
[1767898323331,0.04911514,138.32,138.28,8.3010518]
[1767898325030,0.04911514,138.32,138.27,8.98700086]
[1767898325236,0.04911514,138.32,138.26,8.3017518]
[1767898326832,0.04911514,138.32,138.27,1.63185943]
[1767898329237,6.8308651,138.32,138.25,17.13436029]
[1767898329432,0.26914996,138.31,138.25,1.63185943]
[1767898329633,0.26914996,138.31,138.23,1.63185943]
[1767898330141,0.0468845,138.29,138.23,1.63185943]
[1767898330630,0.0468845,138.29,138.24,1.63185943]
[1767898331430,6.83391623,138.29,138.22,1.63185943]
[1767898331631,0.27508357,138.28,138.2,8.98700086]
[1767898331832,3.0658367,138.25,138.19,1.63185943]
[1767898332534,0.04873111,138.23,138.19,1.63185943]
[1767898334742,95.06490431,138.27,138.19,1.63185943]
[1767898334943,95.06490431,138.27,138.21,1.63185943]
[1767898335347,0.32959554,138.26,138.2,0.05121995]
[1767898335546,0.32959554,138.26,138.2,1.68307938]
[1767898335842,85.48,138.27,138.2,1.68307938]
[1767898336041,0.33157273,138.28,138.2,1.68307938]
[1767898336631,0.33157273,138.28,138.21,1.63185943]
[1767898337541,0.33157273,138.28,138.23,0.04733534]
[1767898337745,0.33545216,138.26,138.19,1.63185943]
[1767898339242,0.0525489,138.24,138.19,1.63185943]
[1767898339438,9.642414,138.29,138.2,1.63185943]
[1767898339739,95.142414,138.29,138.22,1.63185943]
[1767898339940,0.39191658,138.28,138.21,0.04704595]
[1767898340140,0.39191658,138.28,138.2,1.63185943]
[1767898340846,0.39191658,138.28,138.23,0.05235417]
[1767898341644,6.5153,138.26,138.23,0.05235417]
[1767898342146,6.5153,138.26,138.2,1.63185943]
[1767898343951,0.05161532,138.27,138.2,1.63185943]
[1767898344351,0.05161532,138.27,138.22,1.63185943]
[1767898344652,101.305,138.33,138.22,1.63185943]
[1767898344653,0.4513811,138.32,138.22,1.63185943]
[1767898344847,0.4513811,138.32,138.24,1.63185943]
[1767898345539,6.513,138.31,138.24,8.14795943]
[1767898345945,6.513,138.31,138.27,0.05101857]
[1767898347053,92.0322,138.33,138.27,0.05101857]
[1767898347249,92.48956667,138.33,138.27,0.05101857]
[1767898348451,85.97736667,138.33,138.27,1.682878]
[1767898349046,0.45736667,138.33,138.27,1.682878]
[1767898350247,92.0316,138.34,138.27,1.682878]
[1767898350447,85.52,138.34,138.28,1.63185943]
[1767898351556,85.98499655,138.36,138.28,1.63185943]
[1767898352454,85.98499655,138.36,138.31,0.04637853]
[1767898352749,6.5111,138.35,138.31,0.04637853]
[1767898353745,85.946569,138.36,138.26,1.75098645]
[1767898353936,0.426569,138.36,138.26,1.75098645]
[1767898354249,85.926569,138.36,138.26,1.75098645]
[1767898355653,6.5114,138.35,138.28,8.26528645]
[1767898356343,85.926569,138.36,138.29,1.75098645]
[1767898356550,1.78681064,138.35,138.29,1.75098645]
[1767898358145,85.5,138.37,138.29,1.75098645]
[1767898358451,87.7207751,138.37,138.29,1.75098645]
[1767898359042,0.05550417,138.34,138.29,1.75098645]
[1767898360651,0.05550417,138.34,138.3,1.75098645]
[1767898362149,0.05550417,138.34,138.27,1.75098645]
[1767898362349,0.05550417,138.34,138.29,8.26488645]
[1767898362953,0.05550417,138.34,138.25,101.3525]
[1767898362954,2.22951293,138.33,138.27,1.75098645]
[1767898363159,1.78681064,138.31,138.27,1.75098645]
[1767898366066,8.74161293,138.33,138.27,1.75098645]
[1767898371468,1.78681064,138.33,138.28,1.75098645]
[1767898379769,6.5111,138.35,138.28,1.75098645]
[1767898379975,0.46899388,138.34,138.28,1.75098645]
[1767898380177,1.78681064,138.33,138.28,1.75098645]
[1767898381576,6.98059388,138.34,138.29,0.05172001]
[1767898381875,0.04654489,138.32,138.29,0.05172001]
[1767898382976,0.04654489,138.32,138.29,1.84856292]
[1767898383674,94.25191478,138.36,138.29,8.36246292]
[1767898386281,0.52612271,138.35,138.29,8.36246292]
[1767898386484,0.52612271,138.35,138.29,1.84856292]
[1767898388483,0.52885106,138.37,138.3,1.73862902]
[1767898388676,1.78681064,138.35,138.3,8.47995182]
[1767898389271,1.78681064,138.35,138.31,0.05365934]
[1767898389878,1.78681064,138.36,138.31,0.05365934]
[1767898390683,0.53283331,138.35,138.31,0.05365934]
[1767898392184,8.29741064,138.36,138.31,0.05365934]
[1767898393685,8.83406271,138.36,138.31,0.05365934]
[1767898396287,1.78681064,138.34,138.31,0.05365934]
[1767898396981,0.53913189,138.35,138.31,0.05365934]
[1767898397684,1.78681064,138.32,138.26,15.50190086]
[1767898397886,1.78681064,138.32,138.26,1.73862902]
[1767898399289,0.05300197,138.3,138.26,1.73862902]
[1767898399789,1.78681064,138.32,138.27,0.05546355]
[1767898402693,1.78681064,138.32,138.27,1.79409257]
[1767898403087,93.77831064,138.34,138.27,1.79409257]
[1767898403885,6.5122,138.33,138.27,1.79409257]
[1767898405093,6.5125,138.32,138.27,1.79409257]
[1767898405891,93.77881064,138.34,138.27,1.79409257]
[1767898406096,101.266,138.38,138.28,1.73862902]
[1767898406293,1.78681064,138.36,138.28,1.73862902]
[1767898406596,8.29781064,138.36,138.28,8.25292902]
[1767898406782,1.78681064,138.36,138.28,8.25292902]
[1767898406982,1.78681064,138.36,138.31,0.04773378]
[1767898407601,6.5111,138.35,138.31,0.04773378]
[1767898408004,87.26681064,138.38,138.31,1.7863628]
[1767898408203,6.5104,138.37,138.31,1.7863628]
[1767898408399,1.78681064,138.36,138.31,1.7863628]
[1767898409001,8.29751064,138.36,138.31,0.04773378]
[1767898410293,1.78681064,138.36,138.31,0.04773378]
[1767898411606,6.5116,138.34,138.31,0.04773378]
[1767898412798,8.29781064,138.36,138.31,0.04773378]
[1767898413695,6.5111,138.35,138.31,0.04773378]
[1767898415202,6.5115,138.34,138.31,0.04773378]
[1767898416205,93.77771064,138.36,138.31,0.04773378]
[1767898418509,91.9909,138.36,138.31,0.04773378]
[1767898422113,85.48,138.36,138.31,1.77816639]
[1767898424110,85.48,138.36,138.31,0.04773378]
[1767898424404,91.9906,138.36,138.31,0.04773378]
[1767898426416,85.48,138.36,138.31,0.04773378]
[1767898428610,6.5118,138.34,138.26,10.71743347]
[1767898429214,6.5118,138.34,138.27,1.73043261]
[1767898429910,6.512,138.33,138.25,10.71743347]
[1767898430803,6.512,138.33,138.26,8.24573261]
[1767898431603,6.512,138.33,138.27,1.73043261]
[1767898432105,85.48,138.34,138.28,1.73043261]
[1767898433919,85.48,138.34,138.26,10.71743347]
[1767898434313,91.9916,138.34,138.26,10.71743347]
[1767898434612,91.9916,138.34,138.26,1.73043261]
[1767898434912,91.9916,138.34,138.26,8.24563261]
[1767898435619,85.48,138.34,138.24,17.23333347]
[1767898435815,85.48,138.34,138.24,8.24633261]
[1767898436320,6.5129,138.31,138.24,8.24633261]
[1767898436712,104.07846896,138.35,138.24,8.24633261]
[1767898436914,6.5125,138.32,138.25,6.5157]
[1767898438226,85.48,138.34,138.26,8.24573261]
[1767898439720,6.512,138.33,138.26,8.24573261]
[1767898442022,6.512,138.33,138.26,1.73043261]
[1767898442226,6.5125,138.32,138.24,10.71743347]
[1767898442527,2.79166896,138.33,138.24,1.73043261]
[1767898443423,2.79166896,138.33,138.25,1.7977325]
[1767898444532,2.79166896,138.31,138.23,1.7977325]
[1767898444827,85.48,138.3,138.23,1.7977325]
[1767898445025,2.79166896,138.29,138.22,6.5172]
[1767898445729,2.79166896,138.29,138.22,8.3149325]
[1767898446820,6.5144,138.28,138.22,1.7977325]
[1767898449932,94.80556896,138.29,138.22,8.3148325]
[1767898450533,9.30556896,138.29,138.22,8.3148325]
[1767898451338,88.29166896,138.31,138.23,1.85371232]
[1767898451934,2.79166896,138.31,138.23,1.85371232]
[1767898453036,6.5135,138.3,138.23,1.85371232]
[1767898453236,6.5135,138.3,138.23,8.37041232]
[1767898455636,0.05102429,138.28,138.23,8.37041232]
[1767898458938,0.05102429,138.28,138.24,1.85371232]
[1767898473343,0.05102429,138.28,138.24,8.60156895]
[1767898474155,0.05102429,138.28,138.24,1.85371232]
[1767898477445,88.29166896,138.33,138.24,1.85371232]
[1767898477743,88.29166896,138.33,138.26,1.93901338]
[1767898478245,6.5135,138.3,138.26,1.93901338]
[1767898478849,6.5135,138.3,138.27,0.04749775]
[1767898481950,6.5129,138.32,138.27,0.04749775]
[1767898482139,8.30101098,138.32,138.27,0.04749775]
[1767898482343,1.78811098,138.32,138.27,0.04749775]
[1767898483555,6.5129,138.31,138.27,0.04749775]
[1767898484452,1.78811098,138.32,138.27,0.04749775]
[1767898486054,8.30081098,138.32,138.27,0.04749775]
[1767898488057,6.5127,138.32,138.27,1.98651113]
[1767898492063,6.5127,138.32,138.27,8.76164655]
[1767898493264,6.512,138.33,138.27,8.76164655]
[1767898493560,8.30011098,138.33,138.27,8.76164655]
[1767898497174,6.5125,138.32,138.27,8.76164655]
[1767898497370,1.78811098,138.31,138.27,6.82263317]
[1767898497673,1.78811098,138.31,138.27,0.04749775]
[1767898498075,6.5125,138.32,138.27,0.04749775]
[1767898498276,8.30061098,138.32,138.27,0.04749775]
[1767898500377,85.5,138.34,138.27,0.04749775]
[1767898500378,1.78811098,138.3,138.27,0.04749775]
[1767898500578,1.78811098,138.3,138.24,6.77513542]
[1767898500775,1.78811098,138.28,138.23,8.7141488]
[1767898500979,85.55334623,138.31,138.21,6.77513542]
[1767898500980,1.78811098,138.26,138.21,6.77513542]
[1767898501181,1.78811098,138.26,138.2,6.77513542]
[1767898501380,101.3312,138.29,138.19,8.7141488]
[1767898501381,1.78811098,138.24,138.19,8.7141488]
[1767898502178,1.78811098,138.24,138.19,1.93901338]
[1767898502776,1.78811098,138.26,138.19,1.93901338]
[1767898503871,0.04829296,138.24,138.19,1.93901338]
[1767898514682,1.83640394,138.24,138.17,1.93988153]
[1767898515078,1.83640394,138.24,138.18,1.93988153]
[1767898515286,0.04829296,138.24,138.18,1.93988153]
[1767898516587,0.04829296,138.24,138.2,1.93988153]
[1767898517088,8.30291098,138.28,138.22,1.93988153]
[1767898518284,8.30291098,138.28,138.16,195.92370086]
[1767898518285,1.78811098,138.23,138.16,8.71501695]
[1767898518588,1.78811098,138.21,138.16,1.93988153]
[1767898518785,1.78811098,138.2,138.14,1.93988153]
[1767898519794,1.78811098,138.22,138.14,1.93988153]
[1767898520287,1.78811098,138.22,138.16,1.93988153]
[1767898520888,0.04788355,138.2,138.16,1.93988153]
[1767898524784,0.04788355,138.2,138.14,8.46078153]
[1767898524992,0.04788355,138.2,138.12,1.93988153]
[1767898525293,1.78811098,138.19,138.12,1.93988153]
[1767898526094,1.78811098,138.19,138.13,1.93988153]
[1767898526394,0.05160245,138.17,138.13,1.93988153]
[1767898526691,1.78811098,138.19,138.13,1.93988153]
[1767898527295,85.54,138.21,138.14,1.93988153]
[1767898527296,92.0577,138.21,138.14,1.93988153]
[1767898527489,93.84581098,138.21,138.14,1.93988153]
[1767898527793,1.78811098,138.19,138.12,1.93988153]
[1767898528094,8.30681098,138.19,138.12,1.93988153]
[1767898529184,0.0488205,138.17,138.12,1.93988153]
[1767898530082,0.0488205,138.17,138.09,1.93988153]
[1767898530083,1.83693148,138.17,138.09,1.93988153]
[1767898531395,8.30881098,138.15,138.09,1.93988153]
[1767898532484,6.5199,138.17,138.09,1.93988153]
[1767898532684,1.78811098,138.16,138.09,1.93988153]
[1767898533496,8.30831098,138.16,138.09,1.93988153]
[1767898533997,0.04787657,138.14,138.09,1.93988153]
[1767898537996,6.56887657,138.14,138.09,1.93988153]
[1767898538295,8.35698755,138.14,138.09,1.93988153]
[1767898539186,8.35698755,138.14,138.1,0.04663044]
[1767898539388,0.04787657,138.14,138.1,2.07714025]
[1767898543002,6.56887657,138.14,138.07,14.72684717]
[1767898543502,2.80043573,138.1,138.01,2.03050981]
[1767898543707,2.80043573,138.07,138.01,2.03050981]
[1767898544001,85.58,138.09,138.02,2.03050981]
[1767898544992,85.58,138.09,138.03,2.03050981]
[1767898545205,2.80043573,138.11,138.03,2.03050981]
[1767898545496,85.6,138.1,138.03,2.03050981]
[1767898546289,2.80043573,138.09,138.0,2.03050981]
[1767898546489,0.04744996,138.08,138.0,2.03050981]
[1767898547504,0.04744996,138.08,138.01,2.03050981]
[1767898547887,6.5221,138.12,138.04,2.03050981]
[1767898548294,92.1221,138.12,138.04,2.03050981]
[1767898549192,92.1221,138.12,138.07,0.05251039]
[1767898552601,6.5221,138.12,138.07,0.05251039]
[1767898552801,92.1421,138.12,138.07,0.05251039]
[1767898553400,85.62,138.12,138.07,0.05251039]
[1767898553907,2.84907233,138.11,138.02,8.55670981]
[1767898554403,2.80043573,138.11,138.03,2.03050981]
[1767898555010,85.62,138.12,138.04,2.03050981]
[1767898555307,0.0518317,138.08,138.04,2.03050981]
[1767898555606,85.62,138.11,138.07,0.04628726]
[1767898561707,85.62,138.11,138.07,2.07679707]
[1767898561903,85.62,138.11,138.07,0.04628726]
[1767898562305,5.60087146,138.08,137.98,6.71823361]
[1767898562505,2.80043573,138.04,137.98,2.12898669]
[1767898562810,85.62,138.03,137.98,2.12898669]
[1767898563511,2.80043573,138.06,137.98,2.12898669]
[1767898563700,0.05097409,138.02,137.98,2.12898669]
[1767898564203,0.05097409,138.02,137.94,2.12898669]
[1767898564711,2.80043573,138.04,137.94,2.12898669]
[1767898565012,85.62,138.03,137.94,2.12898669]
[1767898565209,2.80043573,138.04,137.98,0.0525256]
[1767898565509,85.62,138.03,137.98,0.0525256]
[1767898566009,85.62,138.05,137.98,2.18151229]
[1767898566499,85.62,138.05,137.98,2.12898669]
[1767898566900,85.62,138.05,138.0,0.05095997]
[1767898569213,92.1454,138.05,138.0,0.05095997]
[1767898570515,85.62,138.05,138.0,0.05095997]
[1767898576120,2.80043573,138.07,138.0,0.05095997]
[1767898576320,85.64,138.06,138.0,0.05095997]
[1767898577016,2.80043573,138.05,137.95,8.69250569]
[1767898577215,2.80043573,138.03,137.95,8.69250569]
[1767898577410,85.66,138.02,137.95,2.16290569]
[1767898577818,85.66,138.01,137.95,2.16290569]
[1767898578410,0.05421026,137.99,137.95,2.16290569]
[1767898581319,2.80043573,138.03,137.96,2.20983571]
[1767898581524,85.66,138.02,137.96,2.20983571]
[1767898583623,92.1867,138.02,137.96,0.04693002]
[1767898584026,85.66,138.02,137.96,0.04693002]
[1767898585229,6.5271,138.01,137.96,0.04693002]
[1767898585724,9.32753573,138.01,137.96,0.04693002]
[1767898586829,85.66,138.0,137.96,2.20983571]
[1767898587029,2.80043573,138.04,137.96,2.20983571]
[1767898587226,6.5272,138.01,137.92,6.5309]
[1767898587430,101.5073,138.05,137.93,2.16290569]
[1767898587431,2.80043573,137.99,137.93,2.16290569]
[1767898587628,88.48043573,138.0,137.93,2.16290569]
[1767898588032,0.04800104,137.97,137.93,2.16290569]
[1767898588329,85.68,137.99,137.93,2.16290569]
[1767898588731,85.68,137.99,137.91,8.69450569]
[1767898589232,92.2082,137.99,137.92,2.16290569]
[1767898589633,92.2082,137.99,137.94,0.04955168]
[1767898590429,88.48043573,137.99,137.9,2.16290569]
[1767898590732,0.05523621,137.98,137.9,2.16290569]
[1767898592633,6.5296,137.96,137.9,2.16290569]
[1767898593535,0.05102943,137.94,137.9,2.16290569]
[1767898595534,6.5289,137.98,137.91,2.11546679]
[1767898595734,6.5289,137.98,137.91,2.16890389]
[1767898596343,88.48043573,137.99,137.92,2.11546679]
[1767898597040,88.48043573,137.99,137.92,8.64676679]
[1767898597227,88.48043573,137.99,137.94,0.04836385]
[1767898598540,88.50043573,137.99,137.94,0.04836385]
[1767898601040,85.7,137.98,137.94,0.04836385]
[1767898602549,87.4965573,137.98,137.94,0.04836385]
[1767898604945,1.7965573,137.98,137.94,0.04836385]
[1767898605145,87.4965573,137.98,137.94,0.04836385]
[1767898608550,87.4965573,137.98,137.88,12.037225]
[1767898608747,0.04868246,137.97,137.88,12.037225]
[1767898609254,87.4965573,137.98,137.88,10.2406677]
[1767898609453,85.7,137.98,137.88,12.037225]
[1767898609648,1.7965573,137.97,137.88,12.037225]
[1767898609847,85.7,137.98,137.91,6.5314]
[1767898610048,87.4965573,137.98,137.91,6.5314]
[1767898610254,94.0251573,137.98,137.91,6.58264782]
[1767898610452,8.3251573,137.98,137.91,8.69811461]
[1767898610754,94.0251573,137.98,137.92,2.11546679]
[1767898610951,8.3251573,137.98,137.92,2.11546679]
[1767898611157,94.0251573,137.98,137.92,2.11546679]
[1767898611354,1.7965573,138.01,137.93,2.11368228]
[1767898611551,87.4965573,138.02,137.93,2.11368228]
[1767898612150,87.4965573,138.02,137.96,0.05388239]
[1767898612658,6.5271,138.01,137.96,0.05388239]
[1767898613456,87.4965573,138.02,137.96,0.05388239]
[1767898613849,1.7965573,138.02,137.96,0.05388239]
[1767898614043,8.3231573,138.02,137.97,2.11368228]
[1767898614251,6.5266,138.02,137.97,2.11368228]
[1767898614451,87.4965573,138.04,137.97,2.11368228]
[1767898615354,87.4965573,138.04,137.99,0.05166922]
[1767898615557,6.5262,138.03,137.99,0.05166922]
[1767898615851,114.525,138.09,137.99,2.1653515]
[1767898615852,101.4774,138.09,137.99,2.1653515]
[1767898616053,1.7965573,138.06,137.99,2.1653515]
[1767898616357,1.7965573,138.06,137.99,2.11368228]
[1767898616559,6.5252,138.05,137.99,2.11368228]
[1767898616856,6.5252,138.05,138.01,0.04604556]
[1767898617048,6.5248,138.06,138.01,0.04604556]
[1767898617249,1.7965573,138.07,138.01,0.04604556]
[1767898618258,6.5243,138.07,138.01,0.04604556]
[1767898618458,8.3208573,138.07,138.01,0.04604556]
[1767898618659,87.4765573,138.07,138.01,0.04604556]
[1767898619148,85.68,138.07,138.01,0.04604556]
[1767898619343,1.7965573,138.06,138.01,0.04604556]
[1767898620961,1.7965573,138.04,137.97,8.64238228]
[1767898621257,1.7965573,138.02,137.97,2.11368228]
[1767898621456,1.7965573,138.0,137.94,2.11368228]
[1767898621659,1.7965573,138.02,137.94,2.11368228]
[1767898622059,1.7965573,138.02,137.95,8.64358228]
[1767898622366,0.04566117,137.99,137.95,2.11368228]
[1767898622953,1.7965573,138.02,137.95,2.11368228]
[1767898623258,1.7965573,138.02,137.96,0.05147947]
[1767898623966,1.7965573,138.02,137.96,2.29455149]
[1767898625157,1.7965573,138.0,137.96,0.05147947]
[1767898626474,85.68,138.02,137.96,0.05147947]
[1767898626652,101.4927,138.07,137.96,6.58087947]
[1767898626857,85.68,138.08,137.96,2.24307202]
[1767898627161,1.7965573,138.08,137.99,2.24307202]
[1767898627360,1.7965573,138.08,138.01,6.5271]
[1767898628365,1.7965573,138.08,138.03,0.05498245]
[1767898628666,8.3203573,138.08,138.03,0.05498245]
[1767898628860,1.7965573,138.06,137.97,62.0]
[1767898629165,1.7965573,137.99,137.93,2.24307202]
[1767898629663,1.7965573,137.99,137.93,8.77377202]
[1767898629856,1.7965573,137.99,137.93,6.5307]
[1767898630259,0.05498564,137.97,137.93,6.5307]
[1767898630964,1.7965573,137.99,137.94,0.05452052]
[1767898631150,92.2065,138.03,137.94,6.58482052]
[1767898631358,92.2065,138.03,137.94,2.29759254]
[1767898631359,87.4765573,138.03,137.94,2.29759254]
[1767898631557,87.4765573,138.03,137.94,2.24307202]
[1767898632057,85.68,138.03,137.97,8.77187202]
[1767898632363,1.7965573,138.06,137.97,2.28934675]
[1767898632560,1.7965573,138.06,137.98,2.08811487]
[1767898633154,1.7965573,138.06,138.01,0.05016209]
[1767898634567,6.5239,138.08,138.01,0.05016209]
[1767898642371,6.5245,138.07,138.01,0.05016209]
[1767898653179,6.5238,138.08,138.01,6.57716209]
[1767898653385,6.5238,138.08,138.01,8.71342857]
[1767898654086,85.68,138.09,138.02,2.13626648]
[1767898654282,85.68,138.09,138.01,0.05016209]
[1767898654283,6.5232,138.1,138.04,2.13626648]
[1767898654483,6.5232,138.1,138.03,6.5261]
[1767898654687,6.5232,138.1,138.02,8.66286648]